bitfinex/quotes_SOLUSD_20250206
["timestamp","ask_amount","ask_price","bid_price","bid_amount"]
[1738850996751,0.10152125,198.94,198.93,24.31350227]
[1738850999138,0.10152125,198.94,198.93,29.34030227]
[1738851000052,0.10152125,198.94,198.93,29.66539193]
[1738851000267,9.322e-05,198.96,198.95,27.46489]
[1738851000564,5.0226,199.1,198.99,20.0]
[1738851000763,0.063,199.11,199.02,24.31350227]
[1738851000966,5.0853,199.11,199.02,24.31350227]
[1738851001272,59.33610227,199.1,199.02,24.31350227]
[1738851001564,54.31350227,199.08,199.01,24.31350227]
[1738851002041,54.31350227,199.08,199.0,24.31350227]
[1738851002042,24.31350227,199.07,199.0,24.31350227]
[1738851002248,24.31350227,199.05,198.98,24.31350227]
[1738851002444,24.37650227,199.03,198.97,24.31350227]
[1738851002667,0.063,199.03,198.98,24.31350227]
[1738851002976,0.063,199.03,199.0,24.31350227]
[1738851003668,0.063,199.03,198.99,24.31350227]
[1738851004044,0.063,199.03,199.0,24.31350227]
[1738851004257,0.063,199.03,199.01,24.31350227]
[1738851004566,0.063,199.03,198.97,24.31350227]
[1738851004769,0.063,199.03,198.98,24.31350227]
[1738851005474,0.063,199.03,198.99,24.31350227]
[1738851006746,0.063,199.03,199.01,24.31350227]
[1738851006951,0.063,199.03,199.02,24.31350227]
[1738851007145,0.063,199.03,199.01,24.31350227]
[1738851007351,0.063,199.03,199.0,24.31350227]
[1738851007947,0.063,199.03,199.01,24.31350227]
[1738851008484,0.063,199.03,198.98,24.31350227]
[1738851008844,0.063,199.03,198.97,24.31350227]
[1738851009369,0.063,199.03,198.99,0.03]
[1738851010555,0.063,199.03,198.99,24.34350227]
[1738851010767,0.09626719,199.0,198.99,0.03]
[1738851011793,5.12136719,199.0,198.99,0.03]
[1738851011950,29.43486946,199.0,198.99,0.03]
[1738851012465,5.12136719,199.0,198.99,0.03]
[1738851014167,59.43486946,199.0,198.99,0.03]
[1738851014690,50.29206517,199.0,198.99,0.03]
[1738851014856,35.12136719,199.0,198.99,0.03]
[1738851015996,50.29206517,199.0,198.99,0.03]
[1738851016656,35.12136719,199.0,198.99,0.03]
[1738851017491,50.29206517,199.0,198.99,0.03]
[1738851018770,51.23446933,199.0,198.99,0.03]
[1738851021268,35.12136719,199.0,198.99,0.03]
[1738851021580,50.29206517,199.0,198.99,0.03]
[1738851022389,50.35506517,199.0,198.99,0.03]
[1738851022888,30.0,198.98,198.9,0.03]
[1738851023098,15.17069798,198.93,198.9,0.03]
[1738851023504,15.17069798,198.95,198.9,0.03]
[1738851023675,15.17069798,198.96,198.9,0.03]
[1738851024075,15.17069798,198.95,198.9,0.03]
[1738851024310,15.17069798,198.93,198.9,0.03]
[1738851024502,15.17069798,198.94,198.9,0.03]
[1738851024676,15.17069798,198.95,198.9,0.03]
[1738851025178,15.17069798,198.91,198.9,0.03]
[1738851025511,45.17069798,198.91,198.9,0.03]
[1738851025879,46.73989798,198.91,198.9,0.03]
[1738851026472,51.76719798,198.91,198.9,0.03]
[1738851026905,15.17069798,198.94,198.9,0.03]
[1738851027194,5.0261,198.96,198.91,15.17069798]
[1738851027402,15.17069798,198.94,198.9,0.03]
[1738851027567,15.17069798,198.91,198.9,0.03]
[1738851028275,20.19799798,198.91,198.9,0.03]
[1738851028777,50.19799798,198.91,198.9,0.03]
[1738851029377,65.36869596,198.91,198.9,0.0001]
[1738851029591,51.14093921,198.91,198.9,0.0001]
[1738851030692,66.31163719,198.91,198.9,0.0001]
[1738851030902,66.40546375,198.91,198.9,0.0001]
[1738851031102,66.65644375,198.91,198.9,0.0001]
[1738851031397,30.0,198.84,198.79,0.03]
[1738851031578,15.17069798,198.83,198.79,0.03]
[1738851031772,15.17069798,198.81,198.79,0.03]
[1738851032393,5.0301,198.8,198.79,0.03]
[1738851034493,50.20079798,198.8,198.79,0.03]
[1738851035290,30.0,198.78,198.77,0.03]
[1738851035495,45.17069798,198.78,198.77,0.03]
[1738851036401,50.20129798,198.78,198.77,0.03]
[1738851038688,5.0306,198.78,198.77,0.03]
[1738851039198,20.20129798,198.78,198.77,0.03]
[1738851039699,5.0304,198.79,198.77,0.03]
[1738851039898,45.17069798,198.82,198.77,0.03]
[1738851040384,15.17069798,198.81,198.77,0.03]
[1738851040576,15.17069798,198.78,198.77,0.03]
[1738851041601,5.0299,198.81,198.77,0.03]
[1738851041987,15.17069798,198.8,198.77,0.03]
[1738851042191,15.17069798,198.78,198.77,0.03]
[1738851042588,20.20129798,198.78,198.77,0.03]
[1738851043307,5.0306,198.78,198.77,0.03]
[1738851043710,20.20129798,198.78,198.77,0.03]
[1738851045002,5.0306,198.78,198.77,0.03]
[1738851045579,20.20129798,198.78,198.77,0.03]
[1738851047084,5.0306,198.78,198.77,0.03]
[1738851048109,20.20129798,198.78,198.77,0.03]
[1738851048989,5.0306,198.78,198.77,0.03]
[1738851049611,20.20129798,198.78,198.77,0.03]
[1738851050911,20.31117111,198.78,198.77,0.03]
[1738851051911,5.14047313,198.78,198.77,0.03]
[1738851052115,0.10987313,198.78,198.77,16.72079798]
[1738851053489,0.1026585,198.79,198.78,0.25098]
[1738851053708,0.10032016,198.8,198.78,30.91872661]
[1738851053912,0.10032016,198.8,198.79,35.17069798]
[1738851054097,0.10032016,198.8,198.79,40.20109798]
[1738851054821,0.10032016,198.8,198.79,55.37179596]
[1738851055022,0.11027053,198.82,198.8,0.12549]
[1738851055326,0.11027053,198.82,198.81,15.49685471]
[1738851056006,0.11027053,198.82,198.81,20.52675471]
[1738851056205,0.11027053,198.82,198.81,20.65224471]
[1738851057524,0.11027053,198.82,198.81,15.49685471]
[1738851057723,0.11027053,198.82,198.81,15.17069798]
[1738851058218,0.11027053,198.82,198.81,20.32608798]
[1738851059194,0.17327053,198.82,198.81,20.32608798]
[1738851059600,0.17327053,198.82,198.81,20.20059798]
[1738851060523,0.17327053,198.82,198.81,20.32608798]
[1738851060724,0.09850898,198.85,198.82,2.0]
[1738851060924,0.09850898,198.85,198.84,0.12549]
[1738851061126,0.09850898,198.85,198.84,15.62196935]
[1738851061721,0.09850898,198.85,198.84,30.68770788]
[1738851061924,0.063,198.91,198.88,20.0]
[1738851062119,0.063,198.91,198.9,30.34139596]
[1738851062510,0.063,198.91,198.9,15.17069798]
[1738851064129,0.063,198.91,198.9,30.34139596]
[1738851064714,0.063,198.91,198.9,15.29618798]
[1738851064914,0.063,198.91,198.9,15.62157018]
[1738851065227,0.063,198.91,198.9,20.52368018]
[1738851065432,0.063,198.91,198.88,15.17069798]
[1738851065610,0.063,198.91,198.87,15.17069798]
[1738851065811,15.23369798,198.91,198.85,15.17069798]
[1738851066006,15.17069798,198.9,198.84,15.17069798]
[1738851066318,15.17069798,198.9,198.79,1.5228]
[1738851066319,15.17069798,198.88,198.81,15.17069798]
[1738851066525,15.17069798,198.9,198.83,15.17069798]
[1738851066906,0.063,198.91,198.85,15.17069798]
[1738851066907,15.23369798,198.91,198.85,15.17069798]
[1738851067223,5.0276,198.9,198.84,15.17069798]
[1738851067420,5.0276,198.9,198.81,5.0298]
[1738851067421,15.17069798,198.89,198.83,15.17069798]
[1738851067723,50.19829798,198.9,198.83,15.17069798]
[1738851067928,50.19829798,198.9,198.8,5.0301]
[1738851067929,35.0276,198.9,198.84,15.17069798]
[1738851068227,5.0276,198.9,198.86,15.17069798]
[1738851069035,0.063,198.91,198.87,15.17069798]
[1738851069336,0.063,198.91,198.85,15.17069798]
[1738851069830,0.063,198.91,198.83,15.17069798]
[1738851069831,15.17069798,198.9,198.83,15.17069798]
[1738851070406,15.17069798,198.89,198.83,15.17069798]
[1738851070733,30.063,198.91,198.83,15.17069798]
[1738851070734,15.17069798,198.9,198.83,15.17069798]
[1738851070923,0.10554321,198.84,198.83,15.17069798]
[1738851071708,0.10554321,198.84,198.83,20.20009798]
[1738851074026,0.10554321,198.84,198.83,15.17069798]
[1738851074359,0.10554321,198.84,198.81,15.17069798]
[1738851074542,0.10554321,198.84,198.82,15.17069798]
[1738851074716,0.10554321,198.84,198.83,15.17069798]
[1738851075334,0.10554321,198.84,198.81,15.17069798]
[1738851076042,0.10554321,198.84,198.83,15.17069798]
[1738851078249,0.10554321,198.84,198.83,20.20009798]
[1738851078639,0.10554321,198.84,198.83,20.32558798]
[1738851078965,0.10554321,198.84,198.83,20.20009798]
[1738851079259,5.13474321,198.84,198.78,21.67349798]
[1738851079416,5.13464321,198.84,198.79,15.17069798]
[1738851080036,5.13464321,198.84,198.8,15.17069798]
[1738851080248,20.30534119,198.84,198.78,15.17069798]
[1738851080545,5.13464321,198.84,198.78,15.17069798]
[1738851081340,5.13464321,198.84,198.79,0.03]
[1738851081547,5.13464321,198.84,198.79,15.20069798]
[1738851082542,5.13464321,198.84,198.81,15.17069798]
[1738851083043,5.13464321,198.84,198.8,15.17069798]
[1738851083224,5.13464321,198.84,198.79,15.20069798]
[1738851083746,5.13464321,198.84,198.81,15.17069798]
[1738851084052,20.30534119,198.84,198.79,0.03]
[1738851084223,15.17069798,198.82,198.79,0.03]
[1738851084428,15.17069798,198.83,198.79,0.03]
[1738851085232,47.70754321,198.84,198.79,0.03]
[1738851085233,32.87824119,198.84,198.79,0.03]
[1738851085433,5.13464321,198.84,198.8,15.17069798]
[1738851085629,5.13464321,198.84,198.82,15.17069798]
[1738851085630,0.10554321,198.84,198.82,15.17069798]
[1738851085835,0.10554321,198.84,198.83,15.17069798]
[1738851088730,0.10554321,198.84,198.82,15.17069798]
[1738851089428,0.10554321,198.84,198.83,15.17069798]
[1738851090955,0.21440007,198.84,198.83,15.17069798]
[1738851091148,0.10885686,198.84,198.83,15.17069798]
[1738851091346,0.10885686,198.84,198.83,15.49689114]
[1738851091549,0.10885686,198.84,198.83,15.17069798]
[1738851095430,0.10885686,198.84,198.83,20.52622713]
[1738851095634,0.10885686,198.84,198.83,20.55622713]
[1738851096636,0.10885686,198.84,198.83,42.15015566]
[1738851102867,0.10885686,198.84,198.83,36.69405318]
[1738851103573,0.10885686,198.84,198.83,10.07072465]
[1738851104061,0.10885686,198.84,198.83,9.7445955]
[1738851104267,0.10885686,198.84,198.83,0.03]
[1738851104567,0.10885686,198.84,198.83,10.07099101]
[1738851104870,0.10885686,198.84,198.83,15.54173176]
[1738851105469,0.10885686,198.84,198.83,15.21533625]
[1738851107497,0.10885686,198.84,198.83,15.34082625]
[1738851107694,0.10881906,198.85,198.84,0.12549]
[1738851107855,0.10881906,198.85,198.84,15.31082625]
[1738851108991,0.10988338,198.92,198.89,0.12549]
[1738851109157,0.10988338,198.92,198.89,30.82146679]
[1738851109355,0.10988338,198.92,198.89,44.35880532]
[1738851109672,0.10988338,198.92,198.89,49.38670532]
[1738851109878,0.10988338,198.92,198.89,50.38670532]
[1738851110471,0.10988338,198.92,198.9,13.53733853]
[1738851110677,0.10988338,198.92,198.9,43.90801103]
[1738851110976,0.26645248,198.91,198.9,48.93561103]
[1738851111176,0.15977848,198.91,198.9,48.93561103]
[1738851113276,0.10051063,198.92,198.91,18.69012853]
[1738851113580,0.10769859,198.95,198.94,0.12549]
[1738851113777,0.10769859,198.95,198.94,15.63570853]
[1738851115174,0.10769859,198.95,198.94,20.53681853]
[1738851115373,0.10769859,198.95,198.94,15.51021853]
[1738851115886,0.10769859,198.95,198.94,15.18533625]
[1738851117587,0.10769859,198.95,198.93,15.18533625]
[1738851117782,5.13399859,198.95,198.92,15.18533625]
[1738851118088,5.13399859,198.95,198.89,15.18533625]
[1738851118472,5.13399859,198.95,198.91,15.18533625]
[1738851120983,0.10769859,198.95,198.94,15.18533625]
[1738851123683,5.13399859,198.95,198.89,15.18533625]
[1738851124290,5.13399859,198.95,198.91,15.18533625]
[1738851124889,0.10769859,198.95,198.94,15.18533625]
[1738851125491,5.13399859,198.95,198.93,15.18533625]
[1738851125669,5.13399859,198.95,198.94,15.18533625]
[1738851129192,5.13399859,198.95,198.9,0.32546491]
[1738851129400,17.76289859,198.95,198.89,15.18533625]
[1738851130284,17.76289859,198.95,198.9,15.18533625]
[1738851130670,17.76289859,198.95,198.91,15.18533625]
[1738851130866,0.10611179,198.92,198.91,15.18533625]
[1738851131492,0.10611179,198.92,198.89,15.18533625]
[1738851131692,0.10611179,198.92,198.86,15.51107702]
[1738851131871,15.29144804,198.92,198.85,15.18533625]
[1738851132275,0.10611179,198.92,198.87,15.18533625]
[1738851132478,5.0273,198.91,198.87,15.18533625]
[1738851133671,5.0273,198.91,198.88,15.18533625]
[1738851134591,5.0273,198.91,198.9,15.18533625]
[1738851136071,5.0273,198.91,198.88,15.18533625]
[1738851139606,5.0273,198.91,198.86,15.18533625]
[1738851139791,17.5957,198.91,198.85,15.18533625]
[1738851139992,17.5957,198.91,198.87,15.18533625]
[1738851140198,17.5957,198.91,198.88,15.18533625]
[1738851140879,5.0273,198.91,198.89,15.18533625]
[1738851141094,5.0273,198.91,198.88,15.18533625]
[1738851141300,5.0273,198.91,198.87,15.21533625]
[1738851141983,5.0273,198.91,198.87,0.03]
[1738851142277,17.5957,198.91,198.87,0.03]
[1738851143492,32.78103625,198.91,198.87,0.03]
[1738851144105,15.18533625,198.89,198.87,0.03]
[1738851144280,15.18533625,198.88,198.87,0.03]
[1738851145578,20.21343625,198.88,198.87,0.03]
[1738851145878,5.0281,198.88,198.87,0.03]
[1738851147115,5.0281,198.88,198.87,15.21533625]
[1738851147794,17.5957,198.91,198.87,15.21533625]
[1738851148107,5.0273,198.91,198.9,15.18533625]
[1738851148286,0.10611179,198.92,198.9,15.18533625]
[1738851148287,5.13321179,198.92,198.9,15.18533625]
[1738851148602,5.13321179,198.92,198.91,15.18533625]
[1738851149198,0.10611179,198.92,198.91,15.18533625]
[1738851150579,5.13321179,198.92,198.89,15.18533625]
[1738851150780,5.23141289,198.92,198.88,15.18533625]
[1738851150987,5.1253011,198.92,198.89,15.18533625]
[1738851151310,5.1253011,198.92,198.9,15.18533625]
[1738851152404,0.0982011,198.92,198.91,15.18533625]
[1738851152707,0.0982011,198.92,198.91,15.51103061]
[1738851153794,0.0982011,198.92,198.91,15.18533625]
[1738851154200,0.0982011,198.92,198.91,29.1735893]
[1738851154510,0.16563613,198.94,198.93,40.43091853]
[1738851154809,0.15937788,198.95,198.94,28.72267478]
[1738851155396,0.15937788,198.95,198.94,28.97365478]
[1738851155593,0.15937788,198.95,198.94,29.09914478]
[1738851156102,0.09820437,198.96,198.95,13.78831853]
[1738851156300,0.09820437,198.96,198.95,29.2982709]
[1738851156500,0.09963499,199.01,198.98,20.37647]
[1738851156799,0.10908334,199.0,198.99,13.91380853]
[1738851157003,0.063,199.03,199.02,39.73412853]
[1738851157201,0.063,199.1,199.05,0.12549]
[1738851157507,0.063,199.1,199.06,29.17204313]
[1738851157682,0.063,199.1,199.06,29.29753313]
[1738851158496,0.063,199.1,199.06,34.44662313]
[1738851160282,0.063,199.1,199.08,0.12549]
[1738851160496,0.063,199.1,199.09,30.94510535]
[1738851160701,0.063,199.1,199.09,35.96790535]
[1738851160896,0.063,199.14,199.1,13.78831853]
[1738851161187,0.063,199.14,199.11,0.12549]
[1738851161396,0.063,199.14,199.13,28.84816478]
[1738851162210,0.063,199.14,199.13,15.18533625]
[1738851162423,0.063,199.14,199.12,15.18533625]
[1738851162706,0.063,199.14,199.03,14.83676355]
[1738851162707,0.063,199.14,199.02,0.32378372]
[1738851163011,0.063,199.14,199.02,13.78831853]
[1738851163402,24.23955874,199.11,199.04,24.23955874]
[1738851164118,24.23955874,199.13,199.06,24.23955874]
[1738851164731,5.022,199.12,199.06,24.23955874]
[1738851166187,12.5546,199.13,199.08,24.23955874]
[1738851166405,12.5546,199.13,199.02,0.12549]
[1738851166406,12.5546,199.13,199.07,24.23955874]
[1738851167291,36.79415874,199.13,199.07,24.23955874]
[1738851167491,24.23955874,199.12,199.06,24.23955874]
[1738851167692,24.23955874,199.11,199.05,24.23955874]
[1738851167989,24.23955874,199.11,199.04,24.23955874]
[1738851168199,5.0226,199.1,199.04,24.23955874]
[1738851168404,5.0226,199.1,199.05,24.23955874]
[1738851169612,5.0226,199.1,199.04,24.23955874]
[1738851169613,17.5791,199.1,199.04,24.23955874]
[1738851169816,41.81865874,199.1,199.03,24.23955874]
[1738851170791,0.10585621,199.05,199.04,24.23955874]
[1738851171007,0.10585621,199.05,199.03,24.23955874]
[1738851171719,0.10585621,199.05,198.99,24.23955874]
[1738851171720,5.0241,199.04,198.99,24.23955874]
[1738851172018,5.0241,199.04,199.0,24.23955874]
[1738851172913,5.0241,199.04,199.02,24.23955874]
[1738851174218,5.0241,199.04,199.0,24.23955874]
[1738851174430,5.0241,199.04,198.95,1.63439]
[1738851174431,17.5843,199.04,198.98,24.23955874]
[1738851175132,24.23955874,199.03,198.96,24.23955874]
[1738851175417,24.23955874,199.02,198.95,24.23955874]
[1738851176432,17.5869,199.01,198.95,24.23955874]
[1738851177017,24.23955874,198.99,198.92,24.23955874]
[1738851177736,41.82645874,199.01,198.94,24.23955874]
[1738851180319,5.0248,199.01,198.99,24.23955874]
[1738851181519,5.0241,199.04,199.0,24.23955874]
[1738851181822,5.0241,199.04,199.01,24.23955874]
[1738851182606,5.0241,199.04,199.03,24.23955874]
[1738851182820,5.12975621,199.05,199.03,24.23955874]
[1738851183004,5.12975621,199.05,199.04,24.23955874]
[1738851183204,0.10585621,199.05,199.04,24.23955874]
[1738851184112,0.10585621,199.05,199.04,23.73955874]
[1738851185525,0.10585621,199.05,199.04,24.18920177]
[1738851186030,0.10585621,199.05,199.04,32.10210177]
[1738851189329,0.10585621,199.05,199.04,24.06371177]
[1738851189829,0.10585621,199.05,199.04,23.73955874]
[1738851190909,0.19819595,199.05,199.04,23.73955874]
[1738851191132,0.09233974,199.05,199.03,24.23955874]
[1738851191305,0.09233974,199.05,199.04,24.23955874]
[1738851194118,0.09233974,199.05,199.04,24.56381576]
[1738851194938,0.09233974,199.05,199.04,24.23955874]
[1738851195947,0.09233974,199.05,199.04,42.92648727]
[1738851196114,0.09233974,199.05,199.04,43.25043298]
[1738851196737,0.09233974,199.05,199.04,34.15690747]
[1738851196937,0.10944402,199.06,199.05,13.91380853]
[1738851197139,0.09163501,199.08,199.07,13.91380853]
[1738851197316,0.10678836,199.09,199.08,1.6314]
[1738851197620,0.10678836,199.09,199.08,31.92346646]
[1738851198138,0.10678836,199.09,199.08,16.77743323]
[1738851198539,0.10678836,199.09,199.08,31.92346646]
[1738851199531,0.10678836,199.09,199.08,36.94656646]
[1738851199742,0.16443856,199.12,199.08,36.94656646]
[1738851199743,0.16443856,199.12,199.09,13.91380853]
[1738851200039,0.16443856,199.12,199.1,30.86628343]
[1738851200221,0.063,199.15,199.11,28.80886176]
[1738851200538,0.063,199.15,199.12,15.46916661]
[1738851200712,0.063,199.15,199.12,24.54356673]
[1738851201538,0.063,199.15,199.12,38.20639526]
[1738851202053,0.063,199.15,199.12,43.22839526]
[1738851203018,0.063,199.15,199.12,38.20639526]
[1738851203637,0.063,199.15,199.12,24.54356673]
[1738851204141,5.0844,199.15,199.12,24.22043335]
[1738851204649,0.063,199.15,199.12,24.22043335]
[1738851205246,5.0843,199.15,199.12,24.22043335]
[1738851205547,0.063,199.15,199.12,24.22043335]
[1738851205853,0.063,199.15,199.12,24.54389619]
[1738851206740,5.12764349,199.13,199.11,24.22043335]
[1738851206959,5.12764349,199.13,199.08,24.22043335]
[1738851207151,29.34807684,199.13,199.07,24.22043335]
[1738851207526,5.12764349,199.13,199.07,24.22043335]
[1738851207858,41.90267684,199.13,199.06,24.22043335]
[1738851209748,5.0223,199.11,199.05,24.22043335]
[1738851210943,0.09643634,199.06,199.05,24.22043335]
[1738851211536,0.09643634,199.06,199.05,24.54459971]
[1738851212138,0.09643634,199.06,199.05,24.22043335]
[1738851217131,5.12003634,199.06,199.05,24.22043335]
[1738851218163,0.09643634,199.06,199.05,24.22043335]
[1738851218549,0.09643634,199.06,199.05,24.54479673]
[1738851218851,0.09643634,199.06,199.05,29.56859673]
[1738851219237,0.09643634,199.06,199.05,43.23142526]
[1738851219958,0.09962322,199.07,199.06,13.91380853]
[1738851220141,0.09233402,199.1,199.09,33.66282853]
[1738851220333,0.09379112,199.13,199.1,13.66282853]
[1738851220538,0.09379112,199.13,199.1,67.12629523]
[1738851220748,0.09379112,199.13,199.1,48.95675275]
[1738851220953,0.09379112,199.13,199.1,49.20773275]
[1738851221259,0.09379112,199.13,199.12,28.79849064]
[1738851226259,0.09379112,199.13,199.12,15.13566211]
[1738851227234,0.15679112,199.13,199.12,15.13566211]
[1738851229156,0.15679112,199.13,199.09,15.13566211]
[1738851229157,5.17859112,199.13,199.09,15.13566211]
[1738851229453,5.17859112,199.13,199.07,15.13566211]
[1738851229653,5.17859112,199.13,199.08,15.13566211]
[1738851230053,5.17859112,199.13,199.09,15.13566211]
[1738851230363,5.17859112,199.13,199.08,15.13566211]
[1738851231060,0.10180854,199.09,199.08,15.13566211]
[1738851233647,5.12460854,199.09,199.08,15.13566211]
[1738851234049,0.10180854,199.09,199.08,15.13566211]
[1738851235366,5.12460854,199.09,199.08,15.13566211]
[1738851235734,0.10180854,199.09,199.08,15.13566211]
[1738851237066,5.12460854,199.09,199.08,15.13566211]
[1738851238169,5.12460854,199.09,199.06,15.13566211]
[1738851238355,5.12460854,199.09,199.07,15.13566211]
[1738851242463,5.12460854,199.09,199.07,15.16566211]
[1738851242861,5.12460854,199.09,199.08,15.13566211]
[1738851242862,0.10180854,199.09,199.08,15.13566211]
[1738851247280,5.12460854,199.09,199.07,15.16566211]
[1738851247570,5.12460854,199.09,199.08,15.13566211]
[1738851247746,0.10180854,199.09,199.08,15.13566211]
[1738851250351,5.12460854,199.09,199.08,15.13566211]
[1738851250862,5.2154883,199.09,199.08,15.13566211]
[1738851251061,0.09087976,199.09,199.08,15.13566211]
[1738851252572,5.11367976,199.09,199.08,15.13566211]
[1738851255973,0.09087976,199.09,199.08,15.13566211]
[1738851256273,0.09087976,199.09,199.08,15.38664211]
[1738851256463,0.16685604,199.12,199.1,0.25098]
[1738851256662,0.09702451,199.17,199.12,0.25098]
[1738851256868,0.09702451,199.17,199.13,29.12182069]
[1738851257268,0.09702451,199.17,199.14,13.66282853]
[1738851257572,0.09702451,199.17,199.15,15.13566211]
[1738851257874,0.09702451,199.17,199.15,15.45867742]
[1738851258075,0.09702451,199.17,199.15,20.47997742]
[1738851258658,0.09969105,199.18,199.17,26.2647]
[1738851258980,0.063,199.19,199.18,13.66282853]
[1738851259182,0.063,199.19,199.18,43.93415275]
[1738851260085,0.063,199.2,199.18,43.93415275]
[1738851260291,0.063,199.2,199.19,49.2770764]
[1738851261570,0.063,199.2,199.19,29.12111429]
[1738851263184,0.063,199.2,199.19,15.45828576]
[1738851263354,0.063,199.2,199.19,15.13566211]
[1738851265379,0.063,199.2,199.19,49.07994275]
[1738851265554,0.063,199.27,199.19,49.07994275]
[1738851265750,0.063,199.27,199.26,15.13566211]
[1738851267080,0.063,199.27,199.19,5.0202]
[1738851267081,0.063,199.27,199.21,15.13566211]
[1738851267284,0.063,199.27,199.22,15.13566211]
[1738851268397,5.0813,199.27,199.22,15.13566211]
[1738851268989,5.0813,199.27,199.21,15.13566211]
[1738851269161,17.627,199.27,199.21,15.13566211]
[1738851269524,15.13566211,199.25,199.18,15.13566211]
[1738851269790,97.53566211,199.24,199.17,15.13566211]
[1738851269968,97.53566211,199.24,199.13,7.5636]
[1738851269969,97.53566211,199.24,199.18,15.13566211]
[1738851270171,82.4,199.24,199.19,15.13566211]
[1738851270488,5.0193,199.23,199.2,15.13566211]
[1738851270894,0.09449346,199.21,199.2,15.13566211]
[1738851279401,0.12449346,199.21,199.2,15.13566211]
[1738851280402,5.14429346,199.21,199.2,15.13566211]
[1738851280601,0.12449346,199.21,199.2,15.13566211]
[1738851281808,5.14429346,199.21,199.18,15.13566211]
[1738851283587,20.27995557,199.21,199.15,15.13566211]
[1738851283804,102.67995557,199.21,199.14,15.13566211]
[1738851284182,87.54429346,199.21,199.15,15.13566211]
[1738851284701,102.67995557,199.21,199.15,15.13566211]
[1738851285309,115.22945557,199.21,199.15,15.13566211]
[1738851285801,15.13566211,199.19,199.12,15.13566211]
[1738851286001,31.19244465,199.2,199.13,15.13566211]
[1738851286002,46.32810676,199.2,199.13,15.13566211]
[1738851286210,16.32810676,199.2,199.13,15.13566211]
[1738851286588,16.32810676,199.2,199.14,15.13566211]
[1738851287322,17.5711,199.19,199.14,15.13566211]
[1738851288104,17.5711,199.19,199.15,15.13566211]
[1738851288306,17.5711,199.19,199.16,15.13566211]
[1738851288808,5.0203,199.19,199.14,15.13566211]
[1738851288989,17.5711,199.19,199.14,15.13566211]
[1738851289491,17.5711,199.19,199.15,15.13566211]
[1738851290027,5.0203,199.19,199.16,15.13566211]
[1738851290317,5.02,199.2,199.17,15.13566211]
[1738851290615,5.02,199.2,199.16,15.13566211]
[1738851291121,0.09744773,199.18,199.16,15.13566211]
[1738851291489,0.09744773,199.18,199.15,0.063]
[1738851291723,0.09744773,199.18,199.15,15.19866211]
[1738851292391,5.0208,199.17,199.15,15.19866211]
[1738851292924,5.11794773,199.18,199.16,15.13566211]
[1738851293126,0.09744773,199.18,199.17,15.13566211]
[1738851293373,0.10109953,199.19,199.18,0.25098]
[1738851293515,0.10072184,199.2,199.19,28.79849064]
[1738851294136,0.10072184,199.2,199.19,43.93415275]
[1738851294320,0.09191354,199.22,199.2,13.66282853]
[1738851294530,0.09648443,199.26,199.21,20.47794829]
[1738851294821,0.09648443,199.26,199.22,15.13566211]
[1738851295743,0.09648443,199.26,199.22,28.79849064]
[1738851296328,0.09648443,199.26,199.22,28.92398064]
[1738851296650,0.09648443,199.26,199.22,33.94348064]
[1738851296856,0.09648443,199.26,199.23,15.45792441]
[1738851297959,0.09648443,199.26,199.23,15.13566211]
[1738851300557,87.52305067,199.24,199.22,15.13566211]
[1738851300724,87.52305067,199.24,199.19,15.13566211]
[1738851300925,87.52305067,199.24,199.2,15.13566211]
[1738851301648,87.52305067,199.24,199.21,15.13566211]
[1738851301818,82.50405067,199.24,199.23,15.13566211]
[1738851302023,0.10405067,199.24,199.23,15.13566211]
[1738851302618,5.12305067,199.24,199.23,15.13566211]
[1738851303028,0.10405067,199.24,199.23,15.13566211]
[1738851303550,0.10405067,199.24,199.23,20.72844063]
[1738851303845,0.16877117,199.27,199.26,0.37647]
[1738851304036,0.063,199.31,199.3,20.25098]
[1738851304238,0.063,199.33,199.31,0.25098]
[1738851304744,0.063,199.33,199.31,15.13566211]
[1738851305636,0.063,199.33,199.31,28.79849064]
[1738851305836,0.063,199.33,199.31,15.13566211]
[1738851306634,0.063,199.33,199.31,24.1781735]
[1738851309059,0.063,199.33,199.29,24.1781735]
[1738851309956,0.063,199.33,199.31,24.1781735]
[1738851310334,0.063,199.33,199.3,24.1781735]
[1738851310956,0.09888289,199.31,199.3,24.1781735]
[1738851311256,0.09888289,199.31,199.29,24.1781735]
[1738851311448,106.5781735,199.3,199.21,24.1781735]
[1738851311647,24.1781735,199.26,199.19,24.1781735]